[Event "*** Titled Tuesday 3|2 Blitz"]
[Site "Chess.com"]
[Date "2014.12.30"]
[Round "1"]
[White "Yaacovn"]
[Black "megarompa"]
[Result "1-0"]
[WhiteElo "2607"]
[BlackElo "2135"]
[TimeControl "180+2"]
[EndTime "11:09:29 PST"]
[Termination "Yaacovn won by resignation"]

1. d4 {[%clk 0:02:55.3]} 1... d5 {[%clk 0:01:30.4]} 2. Nf3 {[%clk 0:02:54.4]}
2... Nf6 {[%clk 0:01:31.9]} 3. c4 {[%clk 0:02:55.3]} 3... e6 {[%clk 0:01:30]} 4.
Nc3 {[%clk 0:02:56.2]} 4... Bb4 {[%clk 0:01:31.4]} 5. cxd5 {[%clk 0:02:56.9]}
5... exd5 {[%clk 0:01:31.8]} 6. Bg5 {[%clk 0:02:57.7]} 6... Qd6 {[%clk
0:01:29.7]} 7. Bxf6 {[%clk 0:02:47.1]} 7... Qxf6 {[%clk 0:01:28.5]} 8. Qb3
{[%clk 0:02:48]} 8... Nc6 {[%clk 0:01:28.4]} 9. e3 {[%clk 0:02:46.1]} 9... O-O
{[%clk 0:01:28.4]} 10. a3 {[%clk 0:02:46.1]} 10... Bxc3+ {[%clk 0:01:28.6]} 11.
Qxc3 {[%clk 0:02:47.1]} 11... Re8 {[%clk 0:01:30]} 12. Be2 {[%clk 0:02:48.1]}
12... Qd6 {[%clk 0:01:27.3]} 13. Rc1 {[%clk 0:02:46.4]} 13... Bg4 {[%clk
0:01:25]} 14. O-O {[%clk 0:02:45.8]} 14... Bxf3 {[%clk 0:01:25.9]} 15. Bxf3
{[%clk 0:02:46.9]} 15... Re7 {[%clk 0:01:20.4]} 16. Qc5 {[%clk 0:02:46.7]} 16...
Rd7 {[%clk 0:01:16]} 17. b4 {[%clk 0:02:45.5]} 17... Qe6 {[%clk 0:01:14.7]} 18.
b5 {[%clk 0:02:44]} 18... Ne7 {[%clk 0:01:15.7]} 19. h3 {[%clk 0:02:43.3]} 19...
a6 {[%clk 0:01:10.9]} 20. a4 {[%clk 0:02:43.6]} 20... axb5 {[%clk 0:01:11.7]}
21. axb5 {[%clk 0:02:45.5]} 21... Rc8 {[%clk 0:01:05]} 22. Rc2 {[%clk
0:02:44.2]} 22... g6 {[%clk 0:01:06]} 23. Rfc1 {[%clk 0:02:44.7]} 23... Kg7
{[%clk 0:01:03.9]} 24. Qa7 {[%clk 0:02:45.2]} 24... c6 {[%clk 0:01:04.3]} 25.
Qb6 {[%clk 0:02:35.7]} 25... f5 {[%clk 0:01:01.5]} 26. g3 {[%clk 0:02:35.9]}
26... Qd6 {[%clk 0:01:02.1]} 27. h4 {[%clk 0:02:31.9]} 27... Ng8 {[%clk
0:01:02.8]} 28. Ra1 {[%clk 0:02:27.5]} 28... Nf6 {[%clk 0:01:03.1]} 29. Ra7
{[%clk 0:02:27.5]} 29... Qb4 {[%clk 0:01:00.2]} 30. Qc5 {[%clk 0:02:21.1]} 30...
Qb1+ {[%clk 0:00:58.5]} 31. Rc1 {[%clk 0:02:21.4]} 31... Qb2 {[%clk 0:00:56.8]}
32. Raa1 {[%clk 0:02:12.8]} 32... Ne4 {[%clk 0:00:54.1]} 33. Bxe4 {[%clk
0:02:07.1]} 33... fxe4 {[%clk 0:00:55.7]} 34. Rab1 {[%clk 0:01:54.5]} 34... Qe2
{[%clk 0:00:56.7]} 35. Rc2 {[%clk 0:01:47.2]} 35... Qf3 {[%clk 0:00:56.7]} 36.
Qa7 {[%clk 0:01:44.4]} 36... Qf5 {[%clk 0:00:55.3]} 37. bxc6 {[%clk 0:01:40.2]}
37... bxc6 {[%clk 0:00:50.6]} 38. Rb7 {[%clk 0:01:41]} 38... Rf7 {[%clk
0:00:46.1]} 39. Qa6 {[%clk 0:01:24.6]} 39... Qe6 {[%clk 0:00:42.2]} 40. Rb6
{[%clk 0:01:13.2]} 40... Rfc7 {[%clk 0:00:42.7]} 41. Qa3 {[%clk 0:01:12.6]}
41... Kf7 {[%clk 0:00:41.2]} 42. Qa4 {[%clk 0:01:11]} 42... h5 {[%clk
0:00:41.6]} 43. Rb1 {[%clk 0:01:09.1]} 43... Qf6 {[%clk 0:00:42.2]} 44. Rbc1
{[%clk 0:01:09.4]} 44... Qd6 {[%clk 0:00:39.7]} 45. Rc5 {[%clk 0:01:09.2]} 45...
Ke7 {[%clk 0:00:39.9]} 46. R1c3 {[%clk 0:01:07.2]} 46... Kf7 {[%clk 0:00:41.1]}
47. Qc2 {[%clk 0:01:07.7]} 47... Kg7 {[%clk 0:00:39.6]} 48. Qc1 {[%clk
0:01:07.5]} 48... Kf7 {[%clk 0:00:39.3]} 49. Qa3 {[%clk 0:01:08.3]} 49... Qe6
{[%clk 0:00:38.6]} 50. Qa6 {[%clk 0:01:08.2]} 50... Kg7 {[%clk 0:00:39.8]} 51.
Qa5 {[%clk 0:01:07.2]} 51... Kf7 {[%clk 0:00:41.1]} 52. Qb4 {[%clk 0:01:08]}
52... Kg7 {[%clk 0:00:42.3]} 53. Qb1 {[%clk 0:01:09.2]} 53... Kf7 {[%clk
0:00:43.8]} 54. Qf1 {[%clk 0:01:10]} 54... Kg7 {[%clk 0:00:45.1]} 55. Rc2 {[%clk
0:01:11.3]} 55... Qf5 {[%clk 0:00:45.7]} 56. Qc1 {[%clk 0:01:11.6]} 56... Qf6
{[%clk 0:00:46.9]} 57. Rxd5 {[%clk 0:01:10]} 57... cxd5 {[%clk 0:00:48.1]} 58.
Rxc7+ {[%clk 0:01:10.8]} 58... Rxc7 {[%clk 0:00:49.9]} 59. Qxc7+ {[%clk
0:01:12.4]} 59... Qf7 {[%clk 0:00:51.7]} 60. Qxf7+ {[%clk 0:01:10.7]} 60... Kxf7
{[%clk 0:00:53.3]} 61. Kg2 {[%clk 0:01:12.2]} 61... Kf6 {[%clk 0:00:54.9]} 62.
f3 {[%clk 0:01:13.8]} 62... Kf5 {[%clk 0:00:55]} 63. Kf2 {[%clk 0:01:15.3]}
63... Kf6 {[%clk 0:00:55.7]} 64. fxe4 {[%clk 0:01:15.5]} 64... dxe4 {[%clk
0:00:57.5]} 65. g4 {[%clk 0:01:14.5]} 65... g5 {[%clk 0:00:53.5]} 66. hxg5+
{[%clk 0:01:14.3]} 66... Kxg5 {[%clk 0:00:54.6]} 67. gxh5 {[%clk 0:01:15.7]}
67... Kxh5 {[%clk 0:00:56.4]} 68. Kg3 {[%clk 0:01:13.6]} 68... Kg5 {[%clk
0:00:57.9]} 69. Kh3 {[%clk 0:01:14.8]} 69... Kh5 {[%clk 0:00:59.1]} 70. Kh2
{[%clk 0:01:14.4]} 70... Kh4 {[%clk 0:00:59.2]} 71. Kg2 {[%clk 0:01:15.5]} 71...
Kg4 {[%clk 0:01:00.9]} 72. Kf2 {[%clk 0:01:17]} 72... Kh5 {[%clk 0:01:02]} 73.
Kf1 {[%clk 0:01:17.2]} 73... Kg5 {[%clk 0:01:02.7]} 74. Kg1 {[%clk 0:01:18.2]}
74... Kf5 {[%clk 0:01:03.8]} 75. Kf2 {[%clk 0:01:19.1]} 75... Kg5 {[%clk
0:01:05.4]} 76. Kg3 {[%clk 0:01:20.4]} 76... Kf5 {[%clk 0:01:06.7]} 77. Kh4
{[%clk 0:01:21.8]} 77... Ke6 {[%clk 0:01:08.4]} 78. Kg4 {[%clk 0:01:23.2]} 78...
Kd5 {[%clk 0:01:10.2]} 79. Kf4 {[%clk 0:01:24.8]} 1-0

[Event "*** Titled Tuesday 3|2 Blitz"]
[Site "Chess.com"]
[Date "2014.12.30"]
[Round "1"]
[White "esr44"]
[Black "MisaPap"]
[Result "0-1"]
[WhiteElo "1987"]
[BlackElo "2361"]
[TimeControl "180+2"]
[EndTime "11:09:34 PST"]
[Termination "MisaPap won by resignation"]

1. d4 {[%clk 0:02:58.8]} 1... Nf6 {[%clk 0:02:40.1]} 2. Nf3 {[%clk 0:02:58]}
2... c5 {[%clk 0:02:40]} 3. e3 {[%clk 0:02:56.2]} 3... e6 {[%clk 0:02:40.7]} 4.
Bd3 {[%clk 0:02:55.5]} 4... b6 {[%clk 0:02:41.2]} 5. O-O {[%clk 0:02:55.9]} 5...
Bb7 {[%clk 0:02:41.7]} 6. c4 {[%clk 0:02:50.4]} 6... Be7 {[%clk 0:02:40.2]} 7.
Nc3 {[%clk 0:02:50.7]} 7... a6 {[%clk 0:02:39.2]} 8. Nd2 {[%clk 0:02:41.2]} 8...
O-O {[%clk 0:02:27.6]} 9. Nde4 {[%clk 0:02:35.9]} 9... Nxe4 {[%clk 0:02:17.9]}
10. Bxe4 {[%clk 0:02:31.1]} 10... d5 {[%clk 0:02:18.8]} 11. cxd5 {[%clk
0:02:23.8]} 11... exd5 {[%clk 0:02:19]} 12. Bf3 {[%clk 0:02:21.3]} 12... c4
{[%clk 0:02:11.7]} 13. b3 {[%clk 0:02:13.1]} 13... Bb4 {[%clk 0:02:07.7]} 14.
Bd2 {[%clk 0:02:03.5]} 14... b5 {[%clk 0:01:46.7]} 15. bxc4 {[%clk 0:01:58.9]}
15... Bxc3 {[%clk 0:01:47.4]} 16. Bxc3 {[%clk 0:01:59]} 16... bxc4 {[%clk
0:01:48.6]} 17. Rb1 {[%clk 0:01:51.8]} 17... Bc6 {[%clk 0:01:49]} 18. Qc2 {[%clk
0:01:36]} 18... Re8 {[%clk 0:01:43.3]} 19. Rb2 {[%clk 0:01:31.3]} 19... Nd7
{[%clk 0:01:43.6]} 20. Rfb1 {[%clk 0:01:31.8]} 20... Qc7 {[%clk 0:01:41.1]} 21.
h3 {[%clk 0:01:28.1]} 21... a5 {[%clk 0:01:31.5]} 22. Qf5 {[%clk 0:01:26]} 22...
Qd6 {[%clk 0:01:26.4]} 23. a4 {[%clk 0:01:12.2]} 23... g6 {[%clk 0:01:25.1]} 24.
Qg5 {[%clk 0:01:08.4]} 24... Kg7 {[%clk 0:01:24.6]} 25. h4 {[%clk 0:00:54.3]}
25... h6 {[%clk 0:01:23.3]} 26. Qg4 {[%clk 0:00:55.6]} 26... Nf6 {[%clk
0:01:18.2]} 27. Qh3 {[%clk 0:00:53]} 27... Bxa4 {[%clk 0:01:14.7]} 28. Rb6
{[%clk 0:00:52]} 28... Qd7 {[%clk 0:01:14.6]} 29. Rxf6 {[%clk 0:00:49]} 29...
Kxf6 {[%clk 0:00:53.1]} 30. Qxd7 {[%clk 0:00:45.7]} 30... Bxd7 {[%clk 0:00:53]}
31. Bxd5 {[%clk 0:00:47.3]} 31... Rab8 {[%clk 0:00:50.8]} 32. Rc1 {[%clk
0:00:47.1]} 32... a4 {[%clk 0:00:45.7]} 33. Bxc4 {[%clk 0:00:47.2]} 33... Rec8
{[%clk 0:00:46.3]} 34. d5+ {[%clk 0:00:45.9]} 34... Ke7 {[%clk 0:00:47.1]} 35.
Be5 {[%clk 0:00:45.4]} 35... Rb4 {[%clk 0:00:42.5]} 36. d6+ {[%clk 0:00:38.8]}
36... Ke8 {[%clk 0:00:42.7]} 37. Bxf7+ {[%clk 0:00:34.9]} 37... Kxf7 {[%clk
0:00:43]} 38. Ra1 {[%clk 0:00:33.6]} 38... Ra8 {[%clk 0:00:42.2]} 39. h5 {[%clk
0:00:31.1]} 39... gxh5 {[%clk 0:00:42.6]} 40. g3 {[%clk 0:00:31]} 40... Ke6
{[%clk 0:00:43]} 41. Bc3 {[%clk 0:00:30.1]} 41... Rb3 {[%clk 0:00:43.2]} 42. Bd4
{[%clk 0:00:27.3]} 42... a3 {[%clk 0:00:43.7]} 43. Kg2 {[%clk 0:00:26]} 43... a2
{[%clk 0:00:44.2]} 44. Kf3 {[%clk 0:00:26.6]} 44... Rb1 {[%clk 0:00:44.9]} 45.
Kf4 {[%clk 0:00:26.7]} 45... Rxa1 {[%clk 0:00:45.3]} 46. Bxa1 {[%clk 0:00:27.9]}
46... Kxd6 {[%clk 0:00:46.5]} 47. e4 {[%clk 0:00:27.5]} 47... Ra4 {[%clk
0:00:44.9]} 48. f3 {[%clk 0:00:28.1]} 48... Be6 {[%clk 0:00:44.9]} 49. Ke3
{[%clk 0:00:26.6]} 49... Kc5 {[%clk 0:00:45.8]} 50. Kf4 {[%clk 0:00:26.8]} 50...
Kd6 {[%clk 0:00:46.4]} 51. Be5+ {[%clk 0:00:25.5]} 51... Ke7 {[%clk 0:00:46.5]}
52. Ba1 {[%clk 0:00:27.4]} 52... Rb4 {[%clk 0:00:47]} 53. Ke5 {[%clk 0:00:22.5]}
53... Rb5+ {[%clk 0:00:47.6]} 54. Kd4 {[%clk 0:00:21.8]} 54... Rb1 {[%clk
0:00:48.3]} 55. Bc3 {[%clk 0:00:21.5]} 55... a1=Q {[%clk 0:00:48.9]} 56. Bxa1
{[%clk 0:00:22.7]} 56... Rxa1 {[%clk 0:00:49.6]} 57. Ke5 {[%clk 0:00:23.7]}
57... Ra5+ {[%clk 0:00:50.1]} 58. Kf4 {[%clk 0:00:25]} 58... Kf6 {[%clk
0:00:49.7]} 59. g4 {[%clk 0:00:23.9]} 59... hxg4 {[%clk 0:00:50]} 60. fxg4
{[%clk 0:00:25]} 60... Rg5 {[%clk 0:00:50.2]} 0-1

[Event "*** Titled Tuesday 3|2 Blitz"]
[Site "Chess.com"]
[Date "2014.12.30"]
[Round "1"]
[White "oggy1984"]
[Black "LuckyTiger"]
[Result "0-1"]
[WhiteElo "2152"]
[BlackElo "2492"]
[TimeControl "180+2"]
[EndTime "11:09:45 PST"]
[Termination "LuckyTiger won by resignation"]

1. e4 {[%clk 0:02:56.1]} 1... e6 {[%clk 0:02:57.2]} 2. d4 {[%clk 0:02:56.7]}
2... d5 {[%clk 0:02:58.9]} 3. e5 {[%clk 0:02:58.2]} 3... c5 {[%clk 0:02:59.7]}
4. c3 {[%clk 0:02:59.9]} 4... Qb6 {[%clk 0:03:00.4]} 5. Nf3 {[%clk 0:03:00.9]}
5... Nc6 {[%clk 0:03:01.5]} 6. a3 {[%clk 0:03:00.8]} 6... c4 {[%clk 0:03:02.5]}
7. Be2 {[%clk 0:02:58.7]} 7... f6 {[%clk 0:03:03.7]} 8. O-O {[%clk 0:02:57.1]}
8... fxe5 {[%clk 0:02:48.6]} 9. dxe5 {[%clk 0:02:59]} 9... Bc5 {[%clk
0:02:47.4]} 10. Nbd2 {[%clk 0:02:56.6]} 10... Nh6 {[%clk 0:02:42.4]} 11. b4
{[%clk 0:02:51.4]} 11... Be7 {[%clk 0:02:43.5]} 12. Nxc4 {[%clk 0:02:23.2]}
12... dxc4 {[%clk 0:02:40.5]} 13. Bxh6 {[%clk 0:02:24.2]} 13... gxh6 {[%clk
0:02:42.4]} 14. Bxc4 {[%clk 0:02:22.7]} 14... Bd7 {[%clk 0:02:40]} 15. Qb3
{[%clk 0:02:22.3]} 15... O-O-O {[%clk 0:02:10.8]} 16. a4 {[%clk 0:02:08.2]}
16... Rhf8 {[%clk 0:01:55.4]} 17. Rfe1 {[%clk 0:02:02.9]} 17... Kb8 {[%clk
0:01:52.5]} 18. Rad1 {[%clk 0:01:55]} 18... a5 {[%clk 0:01:50.6]} 19. b5 {[%clk
0:01:48.2]} 19... Na7 {[%clk 0:01:51.5]} 20. Nd4 {[%clk 0:01:44.3]} 20... Bc5
{[%clk 0:01:52.6]} 21. g3 {[%clk 0:01:35.4]} 21... h5 {[%clk 0:01:52.3]} 22. Kh1
{[%clk 0:01:30.3]} 22... Rxf2 {[%clk 0:01:52.3]} 23. Nxe6 {[%clk 0:01:24.5]}
23... Bxe6 {[%clk 0:01:31.5]} 24. Bxe6 {[%clk 0:01:18.8]} 24... Nc8 {[%clk
0:01:25.1]} 25. Qc4 {[%clk 0:01:09.8]} 25... Rdf8 {[%clk 0:01:10.1]} 26. Bh3
{[%clk 0:01:00.2]} 26... Be7 {[%clk 0:00:48.4]} 27. Rd7 {[%clk 0:00:48.5]} 27...
h4 {[%clk 0:00:41.9]} 28. Qe4 {[%clk 0:00:38.1]} 28... hxg3 {[%clk 0:00:35.5]}
29. hxg3 {[%clk 0:00:30.9]} 29... Rd8 {[%clk 0:00:30.3]} 30. Red1 {[%clk
0:00:25.6]} 30... Rff8 {[%clk 0:00:26.9]} 31. e6 {[%clk 0:00:15.8]} 31... Nd6
{[%clk 0:00:21.5]} 32. Qe5 {[%clk 0:00:14.4]} 32... Ka7 {[%clk 0:00:18.9]} 33.
Bg2 {[%clk 0:00:14.8]} 33... Rf5 {[%clk 0:00:15.4]} 34. Qe2 {[%clk 0:00:07]}
34... Qc5 {[%clk 0:00:14.3]} 35. Rxd8 {[%clk 0:00:06.4]} 35... Rh5+ {[%clk
0:00:15.3]} 36. Bh3 {[%clk 0:00:06.5]} 36... Bxd8 {[%clk 0:00:16.6]} 37. Kg2
{[%clk 0:00:07.1]} 37... Be7 {[%clk 0:00:11.4]} 38. Bg4 {[%clk 0:00:07.1]} 38...
Re5 {[%clk 0:00:11]} 39. Qf2 {[%clk 0:00:06.9]} 39... Qxf2+ {[%clk 0:00:10.8]}
40. Kxf2 {[%clk 0:00:08.8]} 40... Kb6 {[%clk 0:00:11.6]} 41. Re1 {[%clk
0:00:09.5]} 41... Rxe1 {[%clk 0:00:11.8]} 42. Kxe1 {[%clk 0:00:11.4]} 42... Kc5
{[%clk 0:00:13.3]} 43. Be2 {[%clk 0:00:10.7]} 43... b6 {[%clk 0:00:14.1]} 44.
Bd3 {[%clk 0:00:11.7]} 44... h6 {[%clk 0:00:14.8]} 45. Ke2 {[%clk 0:00:13.1]}
45... Kd5 {[%clk 0:00:16.2]} 46. Kf3 {[%clk 0:00:12.1]} 46... Kxe6 {[%clk
0:00:16.7]} 47. Kg4 {[%clk 0:00:12.4]} 47... Nb7 {[%clk 0:00:17.7]} 48. Bc4+
{[%clk 0:00:11.4]} 48... Ke5 {[%clk 0:00:18.1]} 49. Bb3 {[%clk 0:00:11.8]} 49...
Nc5 {[%clk 0:00:19.7]} 50. Bc2 {[%clk 0:00:12.5]} 50... Kd5 {[%clk 0:00:21]} 51.
Kf5 {[%clk 0:00:12.3]} 51... Kc4 {[%clk 0:00:21.2]} 52. Kg6 {[%clk 0:00:07.7]}
52... Bg5 {[%clk 0:00:21.3]} 0-1

[Event "*** Titled Tuesday 3|2 Blitz"]
[Site "Chess.com"]
[Date "2014.12.30"]
[Round "1"]
[White "VSERGUEI"]
[Black "Bigc08"]
[Result "0-1"]
[WhiteElo "2178"]
[BlackElo "1973"]
[TimeControl "180+2"]
[EndTime "11:09:53 PST"]
[Termination "Bigc08 won by checkmate"]

1. d4 {[%clk 0:02:59.7]} 1... Nf6 {[%clk 0:02:38.8]} 2. c4 {[%clk 0:02:59.9]}
2... e6 {[%clk 0:02:39.8]} 3. Nc3 {[%clk 0:03:00]} 3... Bb4 {[%clk 0:02:40.6]}
4. f3 {[%clk 0:03:01.4]} 4... O-O {[%clk 0:02:38.6]} 5. a3 {[%clk 0:03:02.1]}
5... Bxc3+ {[%clk 0:02:39.2]} 6. bxc3 {[%clk 0:03:04]} 6... b6 {[%clk
0:02:39.5]} 7. e4 {[%clk 0:03:04.6]} 7... Ne8 {[%clk 0:02:37.9]} 8. Bd3 {[%clk
0:03:04.6]} 8... Nc6 {[%clk 0:02:36]} 9. Nh3 {[%clk 0:03:05.2]} 9... Na5 {[%clk
0:02:36.6]} 10. O-O {[%clk 0:03:03.5]} 10... Ba6 {[%clk 0:02:37.4]} 11. Qe2
{[%clk 0:03:04.6]} 11... c5 {[%clk 0:02:17.1]} 12. e5 {[%clk 0:03:04.7]} 12...
d5 {[%clk 0:02:15.9]} 13. f4 {[%clk 0:02:54.1]} 13... h6 {[%clk 0:01:30.3]} 14.
f5 {[%clk 0:02:47.6]} 14... exf5 {[%clk 0:01:30.3]} 15. cxd5 {[%clk 0:02:30.5]}
15... Bxd3 {[%clk 0:01:29.1]} 16. Qxd3 {[%clk 0:02:30.5]} 16... Qxd5 {[%clk
0:01:30.2]} 17. Rxf5 {[%clk 0:02:15.9]} 17... cxd4 {[%clk 0:01:27.6]} 18. cxd4
{[%clk 0:02:16.1]} 18... Rd8 {[%clk 0:01:24.7]} 19. Bb2 {[%clk 0:02:06.5]} 19...
Nc4 {[%clk 0:01:23.4]} 20. Bc3 {[%clk 0:02:06.4]} 20... Nc7 {[%clk 0:01:07.4]}
21. Nf4 {[%clk 0:02:04.9]} 21... Qc6 {[%clk 0:00:55.3]} 22. Rf1 {[%clk
0:01:59.8]} 22... Nd5 {[%clk 0:00:52.7]} 23. Nxd5 {[%clk 0:01:51.6]} 23... Qxd5
{[%clk 0:00:52.6]} 24. Bb4 {[%clk 0:01:48.2]} 24... Rfe8 {[%clk 0:00:50.5]} 25.
Kh1 {[%clk 0:01:26.7]} 25... Qxd4 {[%clk 0:00:42.9]} 26. Qxd4 {[%clk 0:01:26.2]}
26... Rxd4 {[%clk 0:00:43.5]} 27. Rxf7 {[%clk 0:01:27.3]} 27... Rd1 {[%clk
0:00:34.1]} 28. Rxd1 {[%clk 0:01:18.1]} 28... Kxf7 {[%clk 0:00:34.9]} 29. Rd7+
{[%clk 0:01:18.9]} 29... Kg6 {[%clk 0:00:30]} 30. Rxa7 {[%clk 0:01:19]} 30...
Rxe5 {[%clk 0:00:30.6]} 31. h3 {[%clk 0:01:19]} 31... Kh7 {[%clk 0:00:26.4]} 32.
a4 {[%clk 0:01:08.9]} 32... Rd5 {[%clk 0:00:17.7]} 33. Bc3 {[%clk 0:01:07.2]}
33... Rg5 {[%clk 0:00:14.8]} 34. Rc7 {[%clk 0:01:06.6]} 34... Ne3 {[%clk
0:00:11]} 35. Bd2 {[%clk 0:00:59.6]} 35... Nd5 {[%clk 0:00:11.2]} 36. Rd7 {[%clk
0:00:55.8]} 36... Rf5 {[%clk 0:00:10.2]} 37. Rd6 {[%clk 0:00:55.9]} 37... Kg8
{[%clk 0:00:06.4]} 38. Kh2 {[%clk 0:00:54.4]} 38... Kf7 {[%clk 0:00:07.7]} 39.
Rd7+ {[%clk 0:00:52.5]} 39... Kf6 {[%clk 0:00:06.7]} 40. Bc1 {[%clk 0:00:51.6]}
40... g5 {[%clk 0:00:07.2]} 41. Bb2+ {[%clk 0:00:51.3]} 41... Ke6 {[%clk
0:00:08]} 42. Rh7 {[%clk 0:00:51.6]} 42... Rf2 {[%clk 0:00:05.3]} 43. Rxh6+
{[%clk 0:00:52.1]} 43... Kf5 {[%clk 0:00:06.7]} 44. Bd4 {[%clk 0:00:39.1]} 44...
Rd2 {[%clk 0:00:06.2]} 45. Bxb6 {[%clk 0:00:38.4]} 45... Nf4 {[%clk 0:00:07.1]}
46. a5 {[%clk 0:00:29]} 46... Rxg2+ {[%clk 0:00:08.1]} 47. Kh1 {[%clk
0:00:29.3]} 47... Ke4 {[%clk 0:00:08.4]} 48. a6 {[%clk 0:00:28.5]} 48... Kf3
{[%clk 0:00:07.4]} 49. a7 {[%clk 0:00:28.9]} 49... Ra2 {[%clk 0:00:08.3]} 50.
Rc6 {[%clk 0:00:23.6]} 50... Ra1+ {[%clk 0:00:08.8]} 51. Bg1 {[%clk 0:00:23.8]}
51... Ne2 {[%clk 0:00:08]} 52. Rf6+ {[%clk 0:00:20.1]} 52... Kg3 {[%clk
0:00:07.2]} 53. Rf1 {[%clk 0:00:08.1]} 53... Rxf1 {[%clk 0:00:06.5]} 54. a8=Q
{[%clk 0:00:08.8]} 54... Rxg1# {[%clk 0:00:07.5]} 0-1

[Event "*** Titled Tuesday 3|2 Blitz"]
[Site "Chess.com"]
[Date "2014.12.30"]
[Round "1"]
[White "Vandros57"]
[Black "Quinten94"]
[Result "1/2-1/2"]
[WhiteElo "1843"]
[BlackElo "2197"]
[TimeControl "180+2"]
[EndTime "11:09:53 PST"]
[Termination "Game drawn by repetition"]

1. d4 {[%clk 0:02:55.8]} 1... d5 {[%clk 0:02:56.1]} 2. Nf3 {[%clk 0:02:55.3]}
2... Nf6 {[%clk 0:02:56.4]} 3. c4 {[%clk 0:02:54.7]} 3... c6 {[%clk 0:02:58]} 4.
e3 {[%clk 0:02:52.6]} 4... Bf5 {[%clk 0:02:58.7]} 5. Bd3 {[%clk 0:02:51.8]} 5...
Bg6 {[%clk 0:02:58.5]} 6. O-O {[%clk 0:02:50.6]} 6... e6 {[%clk 0:02:59.8]} 7.
Nc3 {[%clk 0:02:45.6]} 7... Nbd7 {[%clk 0:03:00.3]} 8. a3 {[%clk 0:02:43.7]}
8... Bd6 {[%clk 0:03:00.2]} 9. Re1 {[%clk 0:02:41.5]} 9... Ne4 {[%clk
0:02:58.9]} 10. h3 {[%clk 0:02:33.5]} 10... f5 {[%clk 0:02:53.4]} 11. Qc2 {[%clk
0:02:28.6]} 11... Bh5 {[%clk 0:02:28.1]} 12. Be2 {[%clk 0:02:23.9]} 12... g5
{[%clk 0:02:18.4]} 13. Nxe4 {[%clk 0:02:17.9]} 13... fxe4 {[%clk 0:02:14.1]} 14.
Nh2 {[%clk 0:02:16.2]} 14... Bxe2 {[%clk 0:02:07.1]} 15. Qxe2 {[%clk 0:02:15.5]}
15... h5 {[%clk 0:01:54.9]} 16. g3 {[%clk 0:02:05.5]} 16... Nf6 {[%clk
0:01:44.2]} 17. Kg2 {[%clk 0:02:04.5]} 17... Qc7 {[%clk 0:01:39.8]} 18. Rh1
{[%clk 0:01:59.4]} 18... Ke7 {[%clk 0:01:30.8]} 19. Bd2 {[%clk 0:01:59.2]} 19...
Kf7 {[%clk 0:01:25.3]} 20. Bb4 {[%clk 0:01:55.7]} 20... Kg6 {[%clk 0:01:21.2]}
21. Bxd6 {[%clk 0:01:54]} 21... Qxd6 {[%clk 0:01:22.5]} 22. Rac1 {[%clk
0:01:39.2]} 22... Rhf8 {[%clk 0:01:22.9]} 23. Rc2 {[%clk 0:01:30.2]} 23... Rf7
{[%clk 0:01:23.9]} 24. Rf1 {[%clk 0:01:22]} 24... Kg7 {[%clk 0:01:17.5]} 25. Rh1
{[%clk 0:01:20.6]} 25... Raf8 {[%clk 0:01:17.7]} 26. Rf1 {[%clk 0:01:20.4]}
26... Kg6 {[%clk 0:01:17.4]} 27. Rh1 {[%clk 0:01:15]} 27... Ng8 {[%clk
0:01:16.4]} 28. Rf1 {[%clk 0:01:14.5]} 28... Ne7 {[%clk 0:01:16.5]} 29. b4
{[%clk 0:01:11.3]} 29... Rf3 {[%clk 0:01:14.6]} 30. Qd1 {[%clk 0:00:59.8]} 30...
R3f7 {[%clk 0:01:11.3]} 31. Qe1 {[%clk 0:00:57.2]} 31... Nf5 {[%clk 0:01:01]}
32. cxd5 {[%clk 0:00:51.8]} 32... exd5 {[%clk 0:01:00]} 33. Qe2 {[%clk
0:00:44.3]} 33... Nh6 {[%clk 0:00:55.3]} 34. Qe1 {[%clk 0:00:44.4]} 34... Rf3
{[%clk 0:00:56.7]} 35. Nxf3 {[%clk 0:00:42.1]} 35... exf3+ {[%clk 0:00:58]} 36.
Kh2 {[%clk 0:00:37.2]} 36... Qe6 {[%clk 0:00:57.3]} 37. Rg1 {[%clk 0:00:35.3]}
37... Ng4+ {[%clk 0:00:55.9]} 38. Kh1 {[%clk 0:00:26.8]} 38... Qe4 {[%clk
0:00:22.8]} 39. Rb2 {[%clk 0:00:19.8]} 39... a6 {[%clk 0:00:18.7]} 40. Qb1
{[%clk 0:00:17.4]} 40... Nf6 {[%clk 0:00:14]} 41. Qxe4+ {[%clk 0:00:17.3]} 41...
Nxe4 {[%clk 0:00:15.3]} 42. Rf1 {[%clk 0:00:17]} 42... Kf5 {[%clk 0:00:14.8]}
43. Kh2 {[%clk 0:00:17.7]} 43... Ke6 {[%clk 0:00:15.8]} 44. Rc1 {[%clk
0:00:16.9]} 44... Kd6 {[%clk 0:00:15.5]} 45. Rcb1 {[%clk 0:00:16]} 45... Kc7
{[%clk 0:00:16.6]} 46. Kg1 {[%clk 0:00:16.5]} 46... Kb6 {[%clk 0:00:17.8]} 47.
a4 {[%clk 0:00:14.6]} 47... Nc3 {[%clk 0:00:18.9]} 48. Ra1 {[%clk 0:00:14.7]}
48... Ne2+ {[%clk 0:00:20.1]} 49. Kf1 {[%clk 0:00:14.7]} 49... Nc3 {[%clk
0:00:20.8]} 50. Kg1 {[%clk 0:00:14.1]} 50... Ne2+ {[%clk 0:00:21.4]} 51. Kf1
{[%clk 0:00:15]} 51... Nc3 {[%clk 0:00:22.7]} 52. Kg1 {[%clk 0:00:16]} 52...
Ne2+ {[%clk 0:00:22.4]} 53. Kf1 {[%clk 0:00:16.6]} 53... Nc3 {[%clk 0:00:23.5]}
54. Kg1 {[%clk 0:00:17.2]} 54... Ne2+ {[%clk 0:00:22.5]} 1/2-1/2